fUSD/lending_fUSD_20250820
["ID","MTS","AMOUNT","RATE_DAILY","PERIOD"]
[380387596,1755721846111,-300.0,0.00024499,2]
[380387597,1755721846121,-500.40119413,0.00024499,2]
[380387598,1755721846131,-1879.0,0.0002452,2]
[380387599,1755721846142,-197.0,0.00024537,3]
[380387600,1755721846152,-1879.0,0.00024543,2]
[380387602,1755721846162,-500.0,0.00024586,2]
[380387603,1755721846172,-700.0,0.00024586,2]
[380387604,1755721846183,-500.0,0.00024586,2]
[380387605,1755721846192,-44660.72549372,0.00024606,2]
[380387606,1755721846202,-1036.43072318,0.00024607,2]
[380387607,1755721846211,-200.0,0.0002461,7]
[380387608,1755721846220,-1036.43072318,0.00024616,2]
[380387609,1755721846230,-232.12,0.00024616,2]
[380387610,1755721846240,-44660.72549372,0.00024617,2]
[380387611,1755721846249,-1036.43072318,0.00024618,2]
[380387612,1755721846259,-44660.72549372,0.00024625,2]
[380387613,1755721846268,-1879.0,0.00024636,2]
[380387614,1755721846277,-44660.72549372,0.00024645,2]
[380387615,1755721846287,-619.624633,0.00024653,2]
[380387616,1755721846296,-851.13162596,0.00024656,2]
[380387617,1755721846306,-248.1975563,0.00024657,2]
[380387618,1755721846317,-3076.80555962,0.00024657,2]
[380387619,1755721846327,-2000.0,0.00024658,15]
[380387620,1755721846338,-1000.0,0.00024658,2]
[380387621,1755721846348,-5019.38025871,0.00024658,2]
[380387622,1755721846358,-619.624633,0.00024663,2]
[380387624,1755721846367,-851.13162596,0.00024684,2]
[380387627,1755721846517,-3076.80555962,0.00024689,2]
[380387628,1755721846526,-44660.72549372,0.00024692,2]
[380387629,1755721846536,-44660.72549372,0.00024693,2]
[380387630,1755721846545,-619.624633,0.00024694,2]
[380387631,1755721846554,-3076.80555962,0.000247,2]
[380387632,1755721846563,-44660.72549372,0.00024724,2]
[380387633,1755721846573,-619.624633,0.00024726,2]
[380387634,1755721846582,-851.13162596,0.0002473,2]
[380387635,1755721846590,-1879.0,0.00024732,2]
[380387636,1755721846599,-186.56,0.00024732,2]
[380387637,1755721846609,-3076.80555962,0.00024734,2]
[380387638,1755721846618,-3076.80555962,0.00024739,2]
[380387639,1755721846627,-619.624633,0.00024744,2]
[380387640,1755721846636,-3076.80555962,0.00024744,2]
[380387641,1755721846645,-851.13162596,0.00024747,2]
[380387642,1755721846655,-3076.80555962,0.00024748,2]
[380387643,1755721846665,-619.624633,0.00024753,2]
[380387644,1755721846674,-1036.43072318,0.00024761,2]
[380387645,1755721846683,-1036.43072318,0.00024766,2]
[380387646,1755721846692,-900.0,0.00024778,9]
[380387647,1755721846702,-900.0,0.00024778,9]
[380387648,1755721846711,-900.0,0.00024778,9]
[380387649,1755721846720,-900.0,0.00024778,9]
[380387650,1755721846729,-900.0,0.00024778,9]
[380387651,1755721846738,-900.0,0.00024778,9]
[380387652,1755721846747,-900.0,0.00024778,9]
[380387653,1755721846756,-900.0,0.00024778,9]
[380387654,1755721846766,-1036.43072318,0.00024779,2]
[380387655,1755721846775,-851.13162596,0.00024782,2]
[380387656,1755721846784,-1036.43072318,0.00024783,2]
[380387657,1755721846793,-851.13162596,0.00024785,2]
[380387658,1755721846802,-619.624633,0.00024792,2]
[380387659,1755721846811,-851.13162596,0.00024795,2]
[380387660,1755721846820,-2500.0,0.000248,2]
[380387661,1755721846829,-603551.476262,0.000248,2]
[380387662,1755721846838,-200.0,0.000248,2]
[380387663,1755721846847,-1879.0,0.00024868,2]
[380387664,1755721846856,-500.0,0.0002487,2]
[380387665,1755721846866,-180.88293131,0.00024899,2]
[380387666,1755721846875,-1817.46,0.00024899,2]
[380387667,1755721846883,-150.0,0.000249,2]
[380387668,1755721846892,-150.0,0.000249,2]
[380387669,1755721846903,-499.89584616,0.000249,2]
[380387670,1755721846912,-1579.82003362,0.000249,2]
[380387671,1755721846921,-183.05574061,0.000249,2]
[380387672,1755721846931,-150.0,0.000249,2]
[380387673,1755721846940,-1297.8387451,0.000249,2]
[380387674,1755721846949,-150.0,0.000249,2]
[380387675,1755721846958,-837.51912167,0.000249,2]
[380387676,1755721846967,-613884.578845,0.000249,2]
[380387677,1755721846976,-56623.7409952,0.000249,2]
[380387678,1755721846985,-1000.0,0.00024906,2]
[380387679,1755721846995,-216.0,0.0002493,30]
[380387680,1755721847005,-229.05412339,0.00024962,2]
[380387681,1755721847017,-1879.0,0.00024996,2]
[380387682,1755721847027,-300.0,0.00025,2]
[380387683,1755721847037,-300.0,0.00025,2]
[380387684,1755721847047,-1744.5612387,0.00025,2]
[380387685,1755721847056,-4686.48582333,0.00025,2]
[380387686,1755721847065,-253.34010133,0.00025,2]
[380387687,1755721847074,-2975.12816502,0.00025,2]
[380387688,1755721847083,-3160.99592159,0.00025,2]
[380387689,1755721847093,-25888.79319691,0.00025,2]
[380387690,1755721847106,-1040.23683806,0.00025,2]
[380387691,1755721847116,-163.50171509,0.00025,2]
[380387692,1755721847125,-10907.34421426,0.00025,15]
[380387693,1755721847134,-253.8,0.00025,2]
[380387694,1755721847145,-300.0,0.00025,2]
[380387695,1755721847153,-342.599999,0.00025,2]
[380387696,1755721847163,-3600.0,0.00025,26]
[380387697,1755721847172,-4000.0,0.00025,4]
[380387698,1755721847182,-15000.0,0.0002501,2]
[380387699,1755721847191,-600.0,0.00025014,2]
[380387700,1755721847201,-1879.0,0.00025062,2]
[380387701,1755721847210,-200.0,0.000251,7]
[380387702,1755721847220,-1879.0,0.00025146,2]
[380387703,1755721847229,-1879.0,0.00025215,2]
[380387704,1755721847239,-1879.0,0.00025223,2]
[380387705,1755721847249,-1500.0,0.0002523,2]
[380387706,1755721847263,-2345.08,0.00025246,7]
[380387707,1755721847273,-2345.08,0.00025246,7]
[380387708,1755721847283,-2345.08,0.00025246,7]
[380387709,1755721847292,-2345.08,0.00025246,7]
[380387710,1755721847301,-1879.0,0.0002533,2]
[380387711,1755721847311,-150.0,0.00025485,2]
[380387712,1755721847320,-150.0,0.00025485,2]
[380387713,1755721847332,-150.0,0.00025485,2]
[380387714,1755721847342,-150.0,0.00025485,2]
[380387715,1755721847351,-150.0,0.00025485,2]
[380387716,1755721847360,-150.0,0.00025485,2]
[380387717,1755721847369,-150.0,0.00025485,2]
[380387718,1755721847378,-150.0,0.00025485,2]
[380387719,1755721847387,-150.0,0.00025485,2]
[380387720,1755721847396,-150.0,0.00025485,2]
[380387721,1755721847406,-150.0,0.00025485,2]
[380387722,1755721847415,-150.0,0.00025485,2]
[380387723,1755721847425,-2222.22,0.00025485,7]
[380387724,1755721847435,-1879.0,0.00025486,2]
[380387725,1755721847446,-153297.15,0.000255,7]
[380387726,1755721847456,-232.12,0.00025505,2]
[380387727,1755721847466,-2345.08,0.0002552,7]
[380387728,1755721847475,-2345.08,0.0002552,7]
[380387729,1755721847484,-600.0,0.00025562,2]
[380387730,1755721847493,-1879.0,0.00025569,2]
[380387731,1755721847503,-300.0,0.000256,2]
[380387732,1755721847512,-7318.2,0.000256,7]
[380387733,1755721847521,-300.0,0.000256,2]
[380387734,1755721847530,-900.0,0.0002565,2]
[380387735,1755721847540,-500.0,0.0002565,2]
[380387736,1755721847549,-1879.0,0.00025671,2]
[380387737,1755721847559,-500.0,0.00025682,2]
[380387738,1755721847568,-700.0,0.00025682,2]
[380387739,1755721847577,-309.29654756,0.00025777,2]
[380387740,1755721847586,-359.76179104,0.0002579,2]
[380387741,1755721847595,-2345.08,0.00025794,7]
[380387742,1755721847604,-2345.08,0.00025794,7]
[380387743,1755721847613,-1879.0,0.00025813,2]
[380387744,1755721847623,-235.58574627,0.00025904,2]
[380387745,1755721847632,-2545.53957219,0.00025946,2]
[380387746,1755721847641,-200.0,0.00025947,2]
[380387747,1755721847650,-586.9514872,0.0002599,2]
[380387748,1755721847660,-3600.0,0.00026,27]
[380387749,1755721847670,-1800.0,0.00026,27]
[380387750,1755721847679,-1052.84,0.00026,2]
[380387751,1755721847688,-4420.25991104,0.00026,2]
[380387752,1755721847698,-4433.65,0.00026,2]
[380387753,1755721847707,-2667.43991901,0.00026,2]
[380387754,1755721847716,-211.53671248,0.00026,2]
[380387755,1755721847725,-4000.0,0.00026,4]
[380387756,1755721847736,-2345.08,0.00026068,7]
[380387757,1755721847746,-2345.08,0.00026068,7]
[380387758,1755721847756,-911.1,0.00026107,2]
[380387759,1755721847766,-702.46,0.00026107,2]
[380387760,1755721847775,-600.0,0.0002611,2]
[380387761,1755721847785,-151.0,0.00026303,7]
[380387762,1755721847794,-176.818882,0.00026303,7]
[380387763,1755721847803,-151.0,0.00026303,7]
[380387764,1755721847813,-176.818882,0.00026303,7]
[380387765,1755721847822,-209.436826,0.00026303,7]
[380387766,1755721847831,-233.505433,0.00026303,7]
[380387767,1755721847841,-176.818882,0.00026303,7]
[380387768,1755721847850,-209.436826,0.00026303,7]
[380387769,1755721847860,-176.818882,0.00026303,7]
[380387770,1755721847870,-209.436826,0.00026303,7]
[380387771,1755721847879,-209.436826,0.00026303,7]
[380387772,1755721847890,-151.0,0.00026303,7]
[380387773,1755721847899,-151.0,0.00026303,7]
[380387774,1755721847910,-368.903733,0.00026303,7]
[380387775,1755721847920,-368.903733,0.00026303,7]
[380387776,1755721847929,-368.903733,0.00026303,7]
[380387777,1755721847939,-368.903733,0.00026303,7]
[380387778,1755721847949,-151.0,0.00026303,7]
[380387779,1755721847959,-176.74226,0.00026303,7]
[380387780,1755721847969,-177.013246,0.00026303,7]
[380387781,1755721847979,-177.013246,0.00026303,7]
[380387782,1755721847989,-177.013246,0.00026303,7]
[380387783,1755721847999,-177.013246,0.00026303,7]
[380387784,1755721848009,-151.0,0.00026303,7]
[380387785,1755721848019,-1275.24783,0.00026303,7]
[380387786,1755721848028,-151.0,0.00026303,7]
[380387787,1755721848039,-1275.24783,0.00026303,7]
[380387788,1755721848049,-1275.24783,0.00026303,7]
[380387789,1755721848058,-1275.24783,0.00026303,7]
[380387790,1755721848069,-56623.74099512,0.00026303,5]
[380387791,1755721848079,-535.63264253,0.00026309,2]
[380387792,1755721848088,-2345.08,0.00026342,7]
[380387793,1755721848100,-2345.08,0.00026342,7]
[380387794,1755721848111,-232.12,0.00026395,2]
[380387795,1755721848121,-501.79376621,0.000264,2]
[380387796,1755721848132,-26865.19643477,0.000264,2]
[380387797,1755721848142,-2222.22,0.00026407,7]
[380387798,1755721848154,-1000.0,0.000265,2]
[380387799,1755721848167,-46822.02704825,0.000265,2]
[380387800,1755721848178,-300.0,0.000266,2]
[380387801,1755721848188,-300.0,0.000266,2]
[380387802,1755721848198,-300.0,0.00026604,10]
[380387803,1755721848207,-300.0,0.00026604,10]
[380387804,1755721848217,-300.0,0.00026604,10]
[380387805,1755721848226,-151.0,0.00026605,7]
[380387806,1755721848236,-176.818882,0.00026605,7]
[380387807,1755721848247,-151.0,0.00026605,7]
[380387808,1755721848257,-176.818882,0.00026605,7]
[380387809,1755721848267,-209.436826,0.00026605,7]
[380387810,1755721848277,-176.818882,0.00026605,7]
[380387811,1755721848286,-209.436826,0.00026605,7]
[380387812,1755721848296,-176.818882,0.00026605,7]
[380387813,1755721848305,-209.436826,0.00026605,7]
[380387814,1755721848315,-209.436826,0.00026605,7]
[380387815,1755721848325,-151.0,0.00026605,7]
[380387816,1755721848334,-151.0,0.00026605,7]
[380387817,1755721848344,-368.903733,0.00026605,7]
[380387818,1755721848354,-368.903733,0.00026605,7]
[380387819,1755721848364,-368.903733,0.00026605,7]
[380387820,1755721848373,-368.903733,0.00026605,7]
[380387821,1755721848382,-151.0,0.00026605,7]
[380387822,1755721848391,-177.013246,0.00026605,7]
[380387823,1755721848401,-177.013246,0.00026605,7]
[380387824,1755721848411,-177.013246,0.00026605,7]
[380387825,1755721848421,-177.013246,0.00026605,7]
[380387826,1755721848430,-151.0,0.00026605,7]
[380387827,1755721848440,-1275.24783,0.00026605,7]
[380387828,1755721848450,-151.0,0.00026605,7]
[380387829,1755721848459,-1275.24783,0.00026605,7]
[380387830,1755721848468,-1275.24783,0.00026605,7]
[380387831,1755721848477,-1275.24783,0.00026605,7]
[380387832,1755721848486,-151.0,0.00026606,7]
[380387833,1755721848496,-151.0,0.00026606,7]
[380387834,1755721848505,-151.0,0.00026606,7]
[380387835,1755721848514,-151.0,0.00026606,7]
[380387836,1755721848523,-151.0,0.00026606,7]
[380387837,1755721848533,-151.0,0.00026606,7]
[380387838,1755721848542,-151.0,0.00026606,7]
[380387839,1755721848551,-151.0,0.00026606,7]
[380387840,1755721848562,-2345.08,0.00026616,7]
[380387841,1755721848571,-2345.08,0.00026616,7]
[380387842,1755721848580,-600.0,0.00026658,2]
[380387843,1755721848590,-716.08,0.00026676,2]
[380387844,1755721848599,-500.0,0.00026778,2]
[380387845,1755721848609,-500.0,0.00026778,2]
[380387846,1755721848618,-700.0,0.00026778,2]
[380387847,1755721848627,-7318.2,0.000268,7]
[380387848,1755721848636,-153297.15,0.000268,7]
[380387849,1755721848645,-666.0,0.00026849,2]
[380387850,1755721848656,-151.0,0.0002685,7]
[380387851,1755721848665,-151.0,0.0002685,7]
[380387852,1755721848675,-151.0,0.0002685,7]
[380387853,1755721848684,-427.754815,0.0002685,7]
[380387854,1755721848693,-427.754815,0.0002685,7]
[380387855,1755721848703,-427.754815,0.0002685,7]
[380387856,1755721848712,-427.754815,0.0002685,7]
[380387857,1755721848721,-151.0,0.0002685,7]
[380387858,1755721848731,-151.0,0.0002685,7]
[380387859,1755721848741,-151.0,0.0002685,7]
[380387860,1755721848750,-151.0,0.0002685,7]
[380387861,1755721848759,-151.0,0.0002685,7]
[380387862,1755721848768,-151.0,0.0002685,7]
[380387863,1755721848778,-151.0,0.0002685,7]
[380387864,1755721848787,-154.863131,0.0002685,7]
[380387865,1755721848796,-151.0,0.0002685,7]
[380387866,1755721848805,-151.0,0.0002685,7]
[380387867,1755721848814,-151.0,0.0002685,7]
[380387868,1755721848824,-151.0,0.0002685,7]
[380387869,1755721848835,-151.0,0.0002685,7]
[380387870,1755721848844,-151.0,0.0002685,7]
[380387871,1755721848854,-151.0,0.0002685,7]
[380387872,1755721848863,-151.0,0.0002685,7]
[380387873,1755721848873,-151.0,0.0002685,7]
[380387874,1755721848882,-151.0,0.0002685,7]
[380387875,1755721848891,-151.0,0.0002685,7]
[380387876,1755721848901,-151.0,0.0002685,7]
[380387877,1755721848911,-151.0,0.0002685,7]
[380387878,1755721848921,-151.0,0.0002685,7]
[380387879,1755721848930,-2345.08,0.0002689,7]
[380387880,1755721848939,-2345.08,0.0002689,7]
[380387881,1755721848949,-6089.0,0.0002689,2]
[380387882,1755721848959,-4152.0,0.0002689,2]
[380387883,1755721848968,-717.0,0.0002689,2]
[380387884,1755721848978,-21495.0,0.0002689,2]
[380387885,1755721848987,-236.0,0.000269,2]
[380387886,1755721848996,-4000.0,0.00027,4]
[380387887,1755721849006,-444.0,0.00027,7]
[380387888,1755721849015,-1266.20749437,0.00027,2]
[380387889,1755721849025,-3600.0,0.00027,28]
[380387890,1755721849034,-266.0,0.00027,7]
[380387891,1755721849044,-330.0,0.00027,7]
[380387892,1755721849053,-205.0,0.00027,2]
[380387893,1755721849063,-51557.02638848,0.00027,2]
[380387894,1755721849073,-546.0,0.00027,7]
[380387895,1755721849082,-272.0,0.00027,7]
[380387896,1755721849092,-197.0,0.00027,7]
[380387897,1755721849105,-250.0,0.00027,2]
[380387898,1755721849114,-1922.69935586,0.00027,14]
[380387899,1755721849123,-1010.80425876,0.00027,2]
[380387900,1755721849134,-3038.59234949,0.00027,2]
[380387901,1755721849145,-216.0,0.0002703,2]
[380387902,1755721849155,-824.7971196,0.00027044,2]
[380387903,1755721849164,-1817.46,0.00027091,6]
[380387904,1755721849174,-2000.0,0.000271,2]
[380387905,1755721849184,-262.43,0.00027123,4]
[380387906,1755721849193,-1555.1,0.00027123,2]
[380387907,1755721849203,-150.0,0.0002714,2]
[380387908,1755721849212,-320.74051982,0.00027146,2]
[380387909,1755721849221,-412.77194261,0.00027159,2]
[380387910,1755721849231,-775.47832561,0.00027161,2]
[380387911,1755721849240,-2345.08,0.00027164,7]
[380387912,1755721849250,-2345.08,0.00027164,7]
[380387913,1755721849259,-150.00000001,0.00027173,4]
[380387914,1755721849269,-150.0,0.00027173,4]
[380387915,1755721849278,-150.0,0.00027173,4]
[380387916,1755721849287,-150.0,0.00027173,4]
[380387917,1755721849296,-150.27475247,0.00027173,4]
[380387918,1755721849305,-150.0,0.00027173,4]
[380387919,1755721849314,-150.0,0.00027173,4]
[380387920,1755721849324,-150.0,0.00027173,4]
[380387921,1755721849333,-150.0,0.00027173,4]
[380387922,1755721849342,-150.0,0.00027173,4]
[380387923,1755721849352,-150.0,0.00027173,4]
[380387924,1755721849361,-150.0,0.00027173,4]
[380387925,1755721849371,-150.0,0.00027173,4]
[380387926,1755721849382,-150.0,0.00027173,4]
[380387927,1755721849392,-150.0,0.00027173,4]
[380387928,1755721849401,-150.0,0.00027173,4]
[380387929,1755721849411,-689.70179394,0.00027205,2]
[380387930,1755721849420,-600.0,0.00027206,2]
[380387931,1755721849431,-150.0,0.0002722,4]
[380387932,1755721849441,-1000.0,0.00027238,2]
[380387933,1755721849451,-150.0,0.00027254,4]
[380387934,1755721849460,-150.0,0.00027267,4]
[380387935,1755721849469,-150.0,0.00027267,4]
[380387936,1755721849479,-824.7971197,0.00027275,2]
[380387937,1755721849489,-232.12,0.00027285,2]
[380387938,1755721849498,-150.0,0.00027293,4]
[380387939,1755721849507,-1052.84,0.000273,2]
[380387940,1755721849517,-150.0,0.00027314,4]
[380387941,1755721849526,-150.0,0.00027324,4]
[380387942,1755721849536,-150.0,0.00027324,4]
[380387943,1755721849545,-150.0,0.00027332,4]
[380387944,1755721849555,-150.0,0.00027336,4]
[380387945,1755721849564,-150.0,0.00027361,4]
[380387946,1755721849573,-150.0,0.00027361,4]
[380387947,1755721849582,-150.0,0.00027374,4]
[380387948,1755721849592,-1000.0,0.00027394,2]
[380387949,1755721849602,-1000.0,0.00027397,2]
[380387950,1755721849612,-569.5476342,0.00027397,2]
[380387951,1755721849622,-2222.22,0.00027397,7]
[380387952,1755721849632,-600.0,0.00027397,80]
[380387953,1755721849641,-300.0,0.00027397,2]
[380387954,1755721849651,-1500.0,0.00027397,16]
[380387955,1755721849661,-398.47681686,0.00027397,2]
[380387956,1755721849671,-178.96,0.00027397,10]
[380387957,1755721849680,-300.0,0.00027397,5]
[380387958,1755721849689,-150.0,0.00027398,2]
[380387959,1755721849699,-150.0,0.00027398,2]
[380387960,1755721849709,-251.41204159,0.00027398,2]
[380387961,1755721849719,-500.0,0.00027398,2]
[380387962,1755721849728,-150.0,0.00027398,2]
[380387963,1755721849738,-150.0,0.00027398,2]
[380387964,1755721849747,-150.0,0.00027398,2]
[380387965,1755721849756,-500.0,0.00027398,2]
[380387966,1755721849766,-500.0,0.00027398,2]
[380387967,1755721849776,-453.0,0.00027398,2]
[380387968,1755721849785,-500.0,0.00027398,2]
[380387969,1755721849795,-500.0,0.00027398,2]
[380387970,1755721849804,-150.0,0.00027398,2]
[380387971,1755721849814,-500.0,0.00027398,2]
[380387972,1755721849823,-256.01621852,0.000274,2]
[380387973,1755721849832,-256.01621852,0.000274,2]
[380387974,1755721849841,-256.01621852,0.000274,2]
[380387975,1755721849851,-2131.9448917,0.00027401,2]
[380387976,1755721849860,-9398.5656925,0.00027401,2]
[380387977,1755721849869,-68475.0758805,0.00027401,2]
[380387978,1755721849878,-4722.4471721,0.00027401,2]
[380387979,1755721849888,-150.0,0.00027406,2]
[380387980,1755721849897,-150.0,0.00027408,7]
[380387981,1755721849907,-150.0,0.00027414,7]
[380387982,1755721849917,-1000.0,0.00027416,2]
[380387983,1755721849926,-150.0,0.00027417,7]
[380387984,1755721849935,-1000.0,0.00027433,2]
[380387985,1755721849945,-1000.0,0.00027435,2]
[380387986,1755721849954,-2345.08,0.00027438,15]
[380387987,1755721849963,-2345.08,0.00027438,15]
[380387988,1755721849973,-1000.0,0.00027444,2]
[380387989,1755721849982,-150.0,0.00027447,7]
[380387990,1755721849992,-150.0,0.00027456,7]
[380387991,1755721850001,-150.0,0.00027456,7]
[380387992,1755721850011,-219.07280249,0.00027473,5]
[380387993,1755721850020,-500.0,0.00027473,5]
[380387994,1755721850030,-150.0,0.00027473,5]
[380387995,1755721850039,-150.0,0.00027473,2]
[380387996,1755721850048,-150.0,0.00027475,7]
[380387997,1755721850057,-150.0,0.00027475,7]
[380387998,1755721850067,-150.0,0.00027475,7]
[380387999,1755721850076,-150.0,0.00027476,2]
[380388000,1755721850085,-150.0,0.0002749,7]
[380388001,1755721850094,-150.0,0.00027499,7]
[380388002,1755721850108,-165.7,0.000275,17]
[380388003,1755721850117,-150.0,0.00027503,7]
[380388004,1755721850126,-288704.5014308,0.00027503,2]
[380388005,1755721850138,-151.0,0.00027503,7]
[380388006,1755721850148,-151.0,0.00027503,7]
[380388007,1755721850158,-151.0,0.00027503,7]
[380388008,1755721850168,-151.0,0.00027503,7]
[380388009,1755721850178,-151.0,0.00027503,7]
[380388010,1755721850188,-151.0,0.00027503,7]
[380388011,1755721850197,-151.0,0.00027503,7]
[380388012,1755721850206,-151.0,0.00027503,7]
[380388013,1755721850216,-151.0,0.00027503,7]
[380388014,1755721850225,-151.0,0.00027503,7]
[380388015,1755721850234,-427.754815,0.00027503,7]
[380388016,1755721850243,-427.754815,0.00027503,7]
[380388017,1755721850252,-427.754815,0.00027503,7]
[380388018,1755721850261,-427.754815,0.00027503,7]
[380388019,1755721850271,-151.0,0.00027503,7]
[380388020,1755721850280,-151.0,0.00027503,7]
[380388021,1755721850289,-151.0,0.00027503,7]
[380388022,1755721850299,-151.0,0.00027503,7]
[380388023,1755721850308,-151.0,0.00027503,7]
[380388024,1755721850318,-151.0,0.00027503,7]
[380388025,1755721850327,-151.0,0.00027503,7]
[380388026,1755721850336,-157.874984,0.00027503,7]
[380388027,1755721850346,-194.750074,0.00027503,7]
[380388028,1755721850355,-151.0,0.00027503,7]
[380388029,1755721850364,-151.0,0.00027503,7]
[380388030,1755721850374,-151.0,0.00027503,7]
[380388031,1755721850384,-151.0,0.00027503,7]
[380388032,1755721850393,-151.0,0.00027503,7]
[380388033,1755721850403,-214.645999,0.00027503,7]
[380388034,1755721850414,-214.645999,0.00027503,7]
[380388035,1755721850423,-214.645999,0.00027503,7]
[380388036,1755721850433,-214.645999,0.00027503,7]
[380388037,1755721850443,-151.0,0.00027503,7]
[380388038,1755721850452,-151.0,0.00027503,7]
[380388039,1755721850462,-151.0,0.00027503,7]
[380388040,1755721850472,-151.0,0.00027503,7]
[380388041,1755721850482,-176.818882,0.00027503,7]
[380388042,1755721850492,-151.0,0.00027503,7]
[380388043,1755721850502,-176.818882,0.00027503,7]
[380388044,1755721850512,-252.793055,0.00027503,7]
[380388045,1755721850521,-209.436826,0.00027503,7]
[380388046,1755721850531,-176.818882,0.00027503,7]
[380388047,1755721850540,-209.436826,0.00027503,7]
[380388048,1755721850550,-176.818888,0.00027503,7]
[380388049,1755721850732,-209.436826,0.00027503,7]
[380388050,1755721850747,-151.0,0.00027503,7]
[380388051,1755721850757,-151.0,0.00027503,7]
[380388052,1755721850767,-368.903733,0.00027503,7]
[380388053,1755721850776,-368.903733,0.00027503,7]
[380388054,1755721850785,-368.903733,0.00027503,7]
[380388055,1755721850795,-368.903728,0.00027503,7]
[380388056,1755721850805,-209.436827,0.00027503,7]
[380388057,1755721850814,-151.0,0.00027503,7]
[380388058,1755721850828,-177.013246,0.00027503,7]
[380388059,1755721850840,-177.013246,0.00027503,7]
[380388060,1755721850850,-177.013246,0.00027503,7]
[380388061,1755721850860,-177.013247,0.00027503,7]
[380388062,1755721850875,-265.070583,0.00027503,7]
[380388063,1755721850894,-1275.24783,0.00027503,7]
[380388064,1755721850903,-1275.24783,0.00027503,7]
[380388065,1755721850914,-1275.24783,0.00027503,7]
[380388066,1755721850924,-1275.247824,0.00027503,7]
[380388067,1755721850933,-450.0,0.00027522,2]
[380388068,1755721850943,-1000.0,0.00027533,2]
[380388069,1755721850952,-2000.0,0.00027533,2]
[380388070,1755721850962,-151.31924293,0.00027534,2]
[380388071,1755721850971,-500.0,0.00027534,2]
[380388072,1755721850981,-4810.8174,0.00027534,2]
[380388073,1755721850991,-150.0,0.00027535,7]
[380388074,1755721851000,-1000.0,0.00027537,2]
[380388075,1755721851009,-150.0,0.00027542,2]
[380388076,1755721851019,-1000.0,0.00027547,2]
[380388077,1755721851028,-150.0,0.0002755,7]
[380388078,1755721851038,-150.0,0.0002755,7]
[380388079,1755721851048,-1000.0,0.00027562,2]
[380388080,1755721851058,-300.0,0.0002757,2]
[380388081,1755721851067,-300.0,0.0002757,2]
[380388082,1755721851077,-150.0,0.00027575,7]
[380388083,1755721851086,-150.0,0.00027581,7]
[380388084,1755721851096,-150.0,0.00027597,7]
[380388085,1755721851109,-1920.3824851,0.00027598,2]
[380388086,1755721851118,-6543.9670473,0.00027598,2]
[380388087,1755721851127,-6321.2446556,0.00027598,2]
[380388088,1755721851137,-6098.5222639,0.00027598,2]
[380388089,1755721851147,-5875.7998722,0.00027598,2]
[380388090,1755721851156,-5653.0774804,0.00027598,2]
[380388091,1755721851166,-5430.3550887,0.00027598,2]
[380388092,1755721851178,-843.97594471,0.000276,7]
[380388093,1755721851188,-300.0,0.000276,2]
[380388094,1755721851198,-217.0,0.000276,30]
[380388095,1755721851208,-216.0,0.000276,30]
[380388096,1755721851217,-300.0,0.000276,2]
[380388097,1755721851227,-200.0,0.000276,2]
[380388098,1755721851236,-154.0,0.000276,3]
[380388099,1755721851245,-394.0,0.00027616,14]